Workbook

Sheet Výpočty
A1: VÝPOČET KUŽELOVÉHO SOUKOLÍ
A2: Normy: Definice a parametry kuželových kol DIN 3971, Výpočty únosnosti kuželových kol ISO 10300 1-3 a další..
A3: Vstupní hodnoty pro výpočet
A4: Výkon na hnacím hřídeli | E4: P | F4: 5 | H4: [kW]
A5: Otáčky hnacího hřídele | E5: n1 | F5: 1500 | H5: [min-1]
A6: Počet zubů pastorku | E6: z1 | F6: 17
A7: Počet zubů kola | E7: z2 | F7: 21
A8: Čelní úhel záběru | E8: αt | F8: 20 | H8: [°]
A9: Úhel sklonu zubu | E9: βm | F9: 0 | H9: [°]
A10: Úhel mezi osami | E10: Σ | F10: 90 | H10: [°]
A11: Požadovaná životnost | E11: Lh | F11: 100000 | H11: [hod]
A12: Směr stoupání zubů pastorku | F12: LEVÝ
A13: Poměrná šířka věnce | E13: ΨL | F13: 0.35
A14: Materiálové hodnoty | F14: Pastorek | G14: Kolo
A15: Stupeň přesnosti dle ISO 1328 | F15: 6 | H15: °
A16: Modul pružnosti pastorku a kola | E16: E | F16: 206000 | G16: 206000 | H16: [MPa]
A17: Poissonova konstanta pastorku a kola | E17: μ | F17: 0.3 | G17: 0.3
A18: Mez únavy v ohybu | E18: σFlim | F18: 390 | G18: 390 | H18: [MPa]
A19: Mez únavy v dotyku | E19: σHlim | F19: 1140 | G19: 1140 | H19: [MPa]
A20: Exponent Wöhlerovy křivky pro ohyb | E20: qF | F20: 6 | G20: 6
A21: Exponent Wöhlerovy křivky pro dotyk | E21: qH | F21: 10 | G21: 10
A22: Bázový počet zatěžovacích cyklů pro ohyb | E22: NFlim | F22: =3*10^6 -> 3000000 | G22: =3*10^6 -> 3000000
A23: Bázový počet zatěžovacích cyklů pro dotyk | E23: NHlim | F23: =100*10^6 -> 100000000 | G23: =100*10^6 -> 100000000
A24: Kinematická viskozita oleje | E24: v | F24: 50 | H24: [mm^2/s]
A25: Parametry převodu
A26: Krouticí moment | E26: Mk | F26: =(9550*F4)/F5 -> 31.83333333 | H26: [Nm]
A27: Převodový poměr | E27: u | F27: =F7/F6 -> 1.235294118
A28: Otáčky hnaného hřídele | E28: n2 | F28: =F$5/F$27 -> 1214.285714 | H28: [min-1]
A29: Obvodová rychlost pastorku | E29: v | F29: =(F64*PI()*F5)/(60*1000) -> 3.337942194 | H29: [m/s]
A30: Návrh modulu a parametry profilu ozubení
A31: Druh ozubení | F31: =IF(AND(F9=0,F32="Typ I"),"PŘÍMÉ",IF(AND(F9>0,F32="Typ I"),"ŠIKMÉ","ZAKŘIVENÉ")) -> PŘÍMÉ
A32: Ozubení | F32: TYP I | H32: =IF(OR((AND(F32="Typ III",F9=0)),(AND(F32="Typ II",F9=0))),"βm≠0!","") -> 
A33: Koeficient bezpečnosti na dotyk | E33: SH | F33: 1.3
A34: Součinitel přídavného zatížení na dotyk | E34: KH | F34: 2
A35: Součinitel ozubení | E35: fH | F35: 77
A36: Poměrná šířka ozubení | E36: Ψb | F36: 9
A37: Návrh normálového modulu | E37: mnm´ | F37: =F35*(((F34*F26*10^3*(COS(F77/180*PI()))^2)/(F36*F6^2*(F19/F33)^2)*((F88+1)/F88))^(1/3)) -> 2.440283664
A38: Normalizovaný normálový modul | E38: mnm | F38: 2.5
A39: Jednotková výška hlavy | E39: ha* | F39: 1
A40: Jednotková vůle | E40: c* | F40: =IF(F32="Typ I",0.2,0.25) -> 0.2
A41: Zaoblení paty zubu | E41: rf* | F41: =(F40)/(1-SIN(F80/180*PI())) -> 0.3039606729
A42: Součinitel záběru profilem | E42: εα | F42: =(((F92^2-F91^2)^(1/2))-(2*F95*SIN(F81/180*PI()))+((G92^2-G91^2)^(1/2)))/(2*PI()*F56*COS(F8/180*PI())) -> 1.6125242
A43: Součinitel záběru krokem | E43: εβ | F43: =(0.85*F60*SIN(F9/180*PI()))/(PI()*F54) -> 0
A44: Součinitel celkového záběru | E44: εγ | F44: =F42+F43 -> 1.6125242
A45: Komplexní stanovení korekcí | F45: Pastorek | G45: Kolo
A46: Typ korekce | F46: =0 -> 0
A47: Pomocné veličiny | E47: a | F47: =Tabulky!E7 -> 0.03
E48: b | F48: =Tabulky!E8 -> 0.008
A49: Jednotkové posunutí | E49: x | F49: =(2*(1-(1/(F27)^2)))*(((COS(F9/180*PI()))^3)/F6)^0.5 -> 0.1671900907 | G49: =-F49 -> -0.1671900907
A50: Jednotková změna tloušťky zubu | E50: xt | F50: =F47+F48*(F27-2.5) -> 0.01988235294 | G50: =-F50 -> -0.01988235294
A51: Snížení výšky paty zubu | E51: k | F51: =0.02*(17-F89) -> -0.09744257803 | G51: =0.02*(17-G89) -> -0.3275161831 | H51: =IF(F51>0,"ANO","NE") -> NE
A52: Geometrie a parametry ozubení kuželových kol | F52: Pastorek | G52: Kolo
A53: Vnější normálný modul | E53: mne | F53: =F55*COS(F84/180*PI()) -> 3.03030303 | H53: [mm]
A54: Střední normálný modul | E54: mnm | F54: =F38 -> 2.5 | H54: [mm]
A55: Vnější tečný modul | E55: mte | F55: =F54/((1-0.5*F13)*COS(F9/180*PI())) -> 3.03030303 | H55: [mm]
A56: Střední tečný modul | E56: mtm | F56: =F55*(F58/F57) -> 2.5 | H56: [mm]
A57: Kuželová vzdálenost vnější | E57: Le | F57: =0.5*F55*(F6/SIN(F77/180*PI())) -> 40.93713965 | H57: [mm]
A58: Kuželová vzdálenost střední | E58: Lm | F58: =F57-0.5*F60 -> 33.77314022 | H58: [mm]
A59: Kuželová vzdálenost vnitřní | E59: Li | F59: =F57-F60 -> 26.60914078 | H59: [mm]
A60: Šířka věnce | E60: b | F60: =F57*F13 -> 14.32799888 | H60: [mm]
A61: Vnější roztečný průměr | E61: de | F61: =F55*F6 -> 51.51515152 | G61: =F55*F7 -> 63.63636364 | H61: [mm]
A62: Vnější průměr hlavové kružnice | E62: dae | F62: =F55*(F6+2*(F39+F49)*COS(F77/180*PI())) -> 57.01328795 | G62: =F55*(F7+2*(F39+G49)*COS(G77/180*PI())) -> 66.81213648 | H62: [mm]
A63: Vnější průměr patní kružnice | E63: dfe | F63: =F55*(F6-2*(F39+F40-F49)*COS(F77/180*PI())) -> 46.650023 | G63: =F55*(F7-2*(F39+F40-G49)*COS(G77/180*PI())) -> 58.42282677 | H63: [mm]
A64: Střední roztečný průměr | E64: dm | F64: =F56*F6 -> 42.5 | G64: =F7*F56 -> 52.5 | H64: [mm]
A65: Vnější výška hlavy zubu | E65: hae | F65: =IF(F32="Typ III",IF(H51="NE",(F39+F49)*F54,(F39+F49-F51)*F54),IF(H51="NE",(F39+F49)*F55,(F39+F49-F51)*F55)) -> 3.536939669 | G65: =IF(F32="Typ III",IF(H51="NE",(F39+G49)*F54,(F39+G49-G51)*F54),IF(H51="NE",(F39+G49)*F55,(F39+G49-G51)*F55)) -> 2.523666392 | H65: [mm]
A66: Vnější výška paty zubu | E66: hfe | F66: =IF(F32="Typ III",(F39+F40-F49)*F54,(F39+F40-F49)*F55) -> 3.129726998 | G66: =IF(F32="Typ III",(F39+F40-G49)*F54,(F39+F40+F49)*F55) -> 4.143000275 | H66: [mm]
A67: Vnější výška zubu | E67: he | F67: =IF(F32="Typ III",((2*F39+F40)*F54),((2*F39+F40)*F55)) -> 6.666666667 | G67: =F67 -> 6.666666667 | H67: [mm]
A68: Střední výška hlavy zubu | E68: ha | F68: =(F39+F49)*F54 -> 2.917975227 | G68: =(F39+G49)*F54 -> 2.082024773 | H68: [mm]
A69: Střední výška paty zubu | E69: hf | F69: =(F39+F40-F49)*F54 -> 2.582024773 | G69: =(F39+F40-G49)*F54 -> 3.417975227 | H69: [mm]
A70: Střední výška zubu | E70: h | F70: =IF(F32="Typ III",F68+F69,(2*F39+F40)*F54) -> 5.5 | G70: =IF(F32="Typ III",G68+G69,F70) -> 5.5 | H70: [mm]
A71: Vnější tloušťka zubu | E71: se | F71: =(0.5*PI()+2*F49*TAN(F8/180*PI())+F50)*F55 -> 5.189039735 | G71: =(0.5*PI()+2*G49*TAN(F8/180*PI())+G50)*F55 -> 4.330938003 | H71: [mm]
A72: Střední tloušťka zubu | E72: sm | F72: =(0.5*PI()+2*F49*TAN(F8/180*PI())+F50)*F54 -> 4.280957782 | G72: =(0.5*PI()+2*G49*TAN(F8/180*PI())+G50)*F54 -> 3.573023852 | H72: [mm]
A73: Šířka zubové mezery | E73: e | F73: =G71 -> 4.330938003 | G73: =F71 -> 5.189039735 | H73: [mm]
A74: Výška hlavového kužele | E74: A | F74: =F57*COS(F77/180*PI())-F65*SIN(F77/180*PI()) -> 29.59274564 | G74: =F57*COS(G77/180*PI())-G65*SIN(G77/180*PI()) -> 23.796069 | H74: [mm]
A75: Úhel hlavy zubu | E75: qa | F75: =IF(F32="Typ III",0,(ATAN(F65/F57))*180/PI()) -> 4.9380516 | G75: =IF(F32="Typ III",0,(ATAN(G65/F57)*180/PI())) -> 3.527668948 | H75: [°]
A76: Úhel paty zubu | E76: qf | F76: =IF(F32="Typ III",0,ATAN(F66/F57)*180/PI()) -> 4.371873549 | G76: =IF(F32="Typ III",0,ATAN(G66/F57)*180/PI()) -> 5.778883291 | H76: [°]
A77: Úhel roztečného kužele | E77: d | F77: =ATAN((SIN(F10/180*PI())/(COS(F10/180*PI())+F27)))*180/PI() -> 38.99099404 | G77: =F10-F77 -> 51.00900596 | H77: [°]
A78: Úhel hlavového kužele | E78: da | F78: =F77+F75 -> 43.92904564 | G78: =G77+G75 -> 54.53667491 | H78: [°]
A79: Úhel patního kužele | E79: df | F79: =F77-F76 -> 34.61912049 | G79: =G77-G76 -> 45.23012267 | H79: [°]
A80: Normálný střední úhel záběru | E80: αnm | F80: =ATAN(TAN(F81/180*PI())*COS(F82/180*PI()))*180/PI() -> 20 | H80: [°]
A81: Čelní úhel záběru | E81: αt | F81: =F8 -> 20 | H81: [°]
A82: Úhel sklonu | E82: βm | F82: =F9 -> 0 | H82: [°]
A83: Základní úhel sklonu | E83: βb | F83: =ASIN(SIN(F82/180*PI())*COS(F80/180*PI()))*180/PI() -> 0 | H83: [°]
A84: Úhel sklonu zubů na konci | E84: βe | F84: =ASIN(SIN(F82/180*PI())*(F58/F57))*180/PI() -> 0 | H84: [°]
A85: Normální rozteč | E85: pe | F85: =PI()*F53 -> 9.519977738
A86: Čelní rozteč | E86: pte | F86: =PI()*F55/COS(F82/180*PI()) -> 9.519977738
A87: Geometrie ozubení virtuálních a bivirtuálních kol | F87: Pastorek | G87: Kolo
A88: Virtuální převodový poměr | E88: uv | F88: =G$89/F$89 -> 1.525951557
A89: Virtuální počet zubů | E89: zv | F89: =IF(F32="Typ I",F6/(COS(F77/180*PI())),F6/(COS(F77/180*PI())*(COS(F82/180*PI()))^3)) -> 21.8721289 | G89: =IF(F32="Typ I",F7/(COS(G77/180*PI())),F7/(COS(G77/180*PI())*(COS(F82/180*PI()))^3)) -> 33.37580915 | H89: [mm]
A90: Roztečný průměr | E90: dv | F90: =IF(F32="Typ I",F64/(COS(F77/180*PI())),F64/(COS(F77/180*PI())*(COS(F82/180*PI()))^2)) -> 54.68032225 | G90: =IF(F32="Typ I",G64/(COS(G77/180*PI())),G64/(COS(G77/180*PI())*(COS(F82/180*PI()))^2)) -> 83.43952288 | H90: [mm]
A91: Základní průměr | E91: dvb | F91: =F90*COS(F8/180*PI()) -> 51.38269532 | G91: =G90*COS(F8/180*PI()) -> 78.40750394 | H91: [mm]
A92: Hlavový průměr | E92: dva | F92: =F90+F65*2*(1-0.5*F13) -> 60.51627271 | G92: =G90+2*G65*(1-0.5*F13) -> 87.60357243 | H92: [mm]
A93: Patní průměr | E93: dvf | F93: =F90-F65*2*(1-0.5*F13) -> 48.8443718 | G93: =G90-2*G65*(1-0.5*F13) -> 79.27547334 | H93: [mm]
A94: Šířka | E94: bv | F94: =F60/COS(F9/180*PI()) -> 14.32799888 | H94: [mm]
A95: Středová vzdálenost | E95: av | F95: =0.5*(F90+G90) -> 69.05992257 | H95: [mm]
A96: Síly působící na ozubení | F96: Pastorek | G96: Kolo
A97: Smysl stoupání | F97: =F12 -> LEVÝ
A98: Obvodová síla | E98: Ft | F98: =(2*F26*10^3)/F64 -> 1498.039216 | H98: [N]
A99: Normálová síla | E99: FN | F99: =F98/(COS(F80/180*PI())*COS(F82/180*PI())) -> 1594.180036 | H99: [N]
A100: Radiální síla | E100: Fr | F100: =(F98/COS(F82/180*PI()))*(TAN(F80/180*PI())*COS(F77/180*PI())+(IF(F12="LEVÝ","-1",1)*(SIN(F82/180*PI())*SIN(F77/180*PI())))) -> 423.7863024 | G100: =F101 -> 343.0651019 | H100: [N]
A101: Axiální síla | E101: Fa | F101: =(F98/COS(F82/180*PI()))*(TAN(F80/180*PI())*SIN(F77/180*PI())+(IF(F12="LEVÝ","1",-1)*(SIN(F82/180*PI())*COS(F77/180*PI())))) -> 343.0651019 | G101: =F100 -> 423.7863024 | H101: [N]
A102: Koeficienty pro pevnostní výpočty | F102: Pastorek | G102: Kolo
A103: Společné koeficienty
A104: Součinitel:
A105: Vnějších dynamických sil | E105: KA | F105: 1.1
A106: Vnitřních dynamických sil | E106: Kv | F106: 1
A107: Koeficienty pro výpočet na ohyb
A108: Součinitel:
A109: Přídavného zatížení | E109: KF | F109: =F105*F106*F110*F111 -> 1.1
A110: Nerovnoměrnosti zatížení zubů po obvodu | E110: KFα | F110: 1
A111: Nerovnoměrnosti zatížení podél zubu | E111: KFβ | F111: 1
A112: Tvaru zubu | E112: YFa | F112: 2.52 | G112: 2.8
A113: Koncentrace napětí | E113: YSa | F113: 1.76 | G113: 1.62
A114: Vlivu záběru profilem | E114: Yε | F114: =IF(F43=0,0.25+(0.75/F42),IF(AND(F43>0,F43<1),0.25+(0.75/F42)-F43*((0.75/F42)-0.375),0.625)) -> 0.7151092989
A115: Sklonu zubu | E115: Yβ | F115: =1-MIN(F43,1)*MIN(F82,30)/120 -> 1
A116: Charakteru cyklu | E116: YA | F116: 1 | G116: 1
A117: Technologie výroby | E117: YT | F117: 1 | G117: 1
A118: Životnosti | E118: YN | F118: =MIN(MAX(((F22)/(60*F5*F11))^(1/F20),1),2.5) -> 1 | G118: =MIN(MAX(((G22)/(60*(F5/F27)*F11))^(1/G20),1),2.5) -> 1
A119: Vrubové citlivosti | E119: Yδ | F119: 1.2 | G119: 1.2
A120: Velikosti | E120: YX | F120: 1 | G120: 1
A121: Drsnosti povrchu | E121: YR | F121: 1 | G121: 1
A122: Vlivu kuželového soukolí | E122: YK | F122: 0.8
A123: Koeficienty pro výpočet na dotyk
A124: Součinitel:
A125: Přídavného zatížení | E125: KH | F125: =F105*F106*F126*F127 -> 1.1
A126: Nerovnoměrnosti zatížení zubů po obvodu | E126: KHα | F126: =F110 -> 1
A127: Nerovnoměrnosti zatížení podél zubu | E127: KHβ | F127: =F111 -> 1
A128: Mechanických vlastností materiálu | E128: ZE | F128: =(1/(PI()*(((1-F17^2)/F16)+((1-G17^2)/G16))))^(1/2) -> 189.8117004 | H128: [MPa]^1/2
A129: Délky dotyku | E129: Zε | F129: =IF(F42<1,((4-F42)/3*(1-F43)+F43/F42)^0.5,(1/F42)^0.5) -> 0.7874933218
A130: Tvaru spoluzabírajících zubů | E130: ZH | F130: 2.49
A131: Životnosti | E131: ZN | F131: =MIN(MAX(((F23)/(60*F5*F11))^(1/F21),0.85),1.6) -> 0.85 | G131: =MIN(MAX(((G23)/(60*(F5/F27)*F11))^(1/F21),0.85),1.6) -> 0.85
A132: Vlivu maziva | E132: ZL | F132: =0.6*(F24)^(1/9) -> 0.926671263
A133: Vlivu jakosti povrchu | E133: ZR | F133: =IF(F15<=6,1,IF(F15=7,0.95,0.9)) -> 1
A134: Vlivu obvodové rychlosti | E134: ZV | F134: 0.96
A135: Sklonu zubu | E135: Zβ | F135: =(COS(F82/180*PI()))^(1/2) -> 1
A136: Vlivu velikosti | E136: ZX | F136: 1
A137: Vlivu kuželového soukolí | E137: ZK | F137: 0.8
A138: Pevnostní výpočet ozubení na ohyb | F138: Pastorek | G138: Kolo
A139: Součinitel bezpečnosti v ohybu | E139: SF | F139: =(F18*F116*F117*F118*F119*F120*F121)/(F112*F113*F115*F114*F122*((F109*F98)/(F60*F54))) -> 4.009404855 | G139: =(F18*G116*G117*G118*G119*G120*G121)/(G112*G113*F115*F114*F122*((F109*F98)/(F60*F54))) -> 3.92030697
A140: Minimální součinitel bezpečnosti v ohybu | E140: SFmin | F140: 1.3 | G140: 1.3
A141: Pevnostní výpočet ozubení na dotyk | F141: Pastorek | G141: Kolo
A142: Součinitel bezpečnosti v dotyku | E142: SH | F142: =(F19*F131*F132*F133*F134*F136)/(F128*F130*F129*F135*F137*(((F98*F125)/(F60*F64))*((F88+1)/F88))^0.5) -> 1.367882134 | G142: =(G19*G131*F132*F133*F134*F136)/(F128*F130*F129*F135*F137*(((F98*F125)/(F60*F64))*((F88+1)/F88))^0.5) -> 1.367882134
A143: Minimální součinitel bezpečnosti v dotyku | E143: SHmin | F143: 1.1 | G143: 1.1
M318: Typ I
M319: Typ II
M320: Typ III
O360: 1

Sheet Tisk
A1: Parametry a geometrie ozubení | F1: Pastorek | G1: Kolo
A2: Typ ozubení | F2: =Výpočty!F32 -> TYP I
A3: Druh ozubení | F3: =Výpočty!F31 -> PŘÍMÉ
A4: Počet zubů pastorku a kola | E4: z | F4: =Výpočty!F6 -> 17 | G4: =Výpočty!F7 -> 21
A5: Čelní úhel záběru | E5: αt | F5: =Výpočty!F8 -> 20 | H5: [°]
A6: Úhel sklonu zubu | E6: βm | F6: =Výpočty!F9 -> 0 | H6: [°]
A7: Úhel mezi osami | E7: Σ | F7: =Výpočty!F10 -> 90 | H7: [°]
A8: Kuželová vzdálenost vnější | E8: Le | F8: =Výpočty!F57 -> 40.93713965 | H8: [mm]
A9: Kuželová vzdálenost střední | E9: Lm | F9: =Výpočty!F58 -> 33.77314022 | H9: [mm]
A10: Šířka věnce | E10: b | F10: =Výpočty!F60 -> 14.32799888 | H10: [mm]
A11: Vnější roztečný průměr | E11: de | F11: =Výpočty!F61 -> 51.51515152 | G11: =Výpočty!G61 -> 63.63636364 | H11: [mm]
A12: Vnější průměr hlavové kružnice | E12: dae | F12: =Výpočty!F62 -> 57.01328795 | G12: =Výpočty!G62 -> 66.81213648 | H12: [mm]
A13: Vnější průměr patní kružnice | E13: dfe | F13: =Výpočty!F63 -> 46.650023 | G13: =Výpočty!G63 -> 58.42282677 | H13: [mm]
A14: Střední roztečný průměr | E14: dm | F14: =Výpočty!F64 -> 42.5 | G14: =Výpočty!G64 -> 52.5 | H14: [mm]
A15: Vnější výška zubu | E15: he | F15: =Výpočty!F67 -> 6.666666667 | G15: =Výpočty!G67 -> 6.666666667 | H15: [mm]
A16: Vnější tloušťka zubu | E16: se | F16: =Výpočty!F71 -> 5.189039735 | G16: =Výpočty!G71 -> 4.330938003 | H16: [mm]
A17: Výška hlavového kužele | E17: A | F17: =Výpočty!F74 -> 29.59274564 | G17: =Výpočty!G74 -> 23.796069 | H17: [mm]
A18: Úhel roztečného kužele | E18: d | F18: =Výpočty!F77 -> 38.99099404 | G18: =Výpočty!G77 -> 51.00900596 | H18: [°]
A19: Úhel hlavového kužele | E19: da | F19: =Výpočty!F78 -> 43.92904564 | G19: =Výpočty!G78 -> 54.53667491 | H19: [°]
A20: Úhel patního kužele | E20: df | F20: =Výpočty!F79 -> 34.61912049 | G20: =Výpočty!G79 -> 45.23012267 | H20: [°]
A21: Virtuální počet zubů | E21: zv | F21: =Výpočty!F89 -> 21.8721289 | G21: =Výpočty!G89 -> 33.37580915
A22: Roztečný průměr | E22: dv | F22: =Výpočty!F90 -> 54.68032225 | G22: =Výpočty!G90 -> 83.43952288 | H22: [mm]
A23: Jednotkové posunutí | E23: x | F23: =Výpočty!F49 -> 0.1671900907 | G23: =Výpočty!G49 -> -0.1671900907
A24: Jednotková změna tloušťky zubu | E24: xt | F24: =Výpočty!F50 -> 0.01988235294 | G24: =Výpočty!G50 -> -0.01988235294
A25: Smysl stoupání | F25: =Výpočty!F97 -> LEVÝ
A26: Obvodová síla | E26: Ft | F26: =Výpočty!F98 -> 1498.039216 | H26: [N]
A27: Normálová síla | E27: FN | F27: =Výpočty!F99 -> 1594.180036 | H27: [N]
A28: Radiální síla | E28: Fr | F28: =Výpočty!F100 -> 423.7863024 | G28: =Výpočty!G100 -> 343.0651019 | H28: [N]
A29: Axiální síla | E29: Fa | F29: =Výpočty!F101 -> 343.0651019 | G29: =Výpočty!G101 -> 423.7863024 | H29: [N]
A30: Součinitel bezpečnosti v ohybu | E30: SF | F30: =Výpočty!F139 -> 4.009404855 | G30: =Výpočty!G139 -> 3.92030697
A31: Součinitel bezpečnosti v dotyku | E31: SH | F31: =Výpočty!F142 -> 1.367882134 | G31: =Výpočty!G142 -> 1.367882134
A32: Koeficienty pro pevnostní výpočty
A33: SPOLEČNÉ PRO OHYB I DOTYK
C34: KA | E34: =Výpočty!F105 -> 1.1
C35: Kv | E35: =Výpočty!F106 -> 1
A36: PRO OHYB | E36: PRO DOTYK
A37: KF | B37: =Výpočty!F109 -> 1.1 | E37: KH | F37: =Výpočty!F125 -> 1.1
A38: KFα | B38: =Výpočty!F110 -> 1 | E38: KHα | F38: =Výpočty!F126 -> 1
A39: KFβ | B39: =Výpočty!F111 -> 1 | E39: KHβ | F39: =Výpočty!F127 -> 1
A40: YFa | B40: =Výpočty!F112 -> 2.52 | C40: =Výpočty!G112 -> 2.8 | E40: ZE | F40: =Výpočty!F128 -> 189.8117004 | H40: [MPa]^1/2
A41: YSa | B41: =Výpočty!F113 -> 1.76 | C41: =Výpočty!G113 -> 1.62 | E41: Zε | F41: =Výpočty!F129 -> 0.7874933218
A42: Yε | B42: =Výpočty!F114 -> 0.7151092989 | E42: ZH | F42: =Výpočty!F130 -> 2.49
A43: Yβ | B43: =Výpočty!F115 -> 1 | E43: ZN | F43: =Výpočty!F131 -> 0.85
A44: YA | B44: =Výpočty!F116 -> 1 | C44: =Výpočty!G116 -> 1 | E44: ZL | F44: =Výpočty!F132 -> 0.926671263
A45: YT | B45: =Výpočty!F117 -> 1 | C45: =Výpočty!G117 -> 1 | E45: ZR | F45: =Výpočty!F133 -> 1
A46: YN | B46: =Výpočty!F118 -> 1 | C46: =Výpočty!G118 -> 1 | E46: ZV | F46: =Výpočty!F134 -> 0.96
A47: Yδ | B47: =Výpočty!F119 -> 1.2 | C47: =Výpočty!G119 -> 1.2 | E47: Zβ | F47: =Výpočty!F135 -> 1
A48: YX | B48: =Výpočty!F120 -> 1 | C48: =Výpočty!G120 -> 1 | E48: ZX | F48: =Výpočty!F136 -> 1
A49: YR | B49: =Výpočty!F121 -> 1 | C49: =Výpočty!G121 -> 1 | E49: ZK | F49: =Výpočty!F137 -> 0.8
A50: YK | B50: =Výpočty!F122 -> 0.8

Sheet Tabulky (hidden)
A1: Tabulka normalizovaných modulů (ČSN 01 4608) | D1: Pomocné veličiny pro stanovení obvodového posunutí
E2: 0°-15° | F2: 15°-29 | G2: 29°-40° | H2: 40° a větší
B3: 0.05 | D3: a | E3: 0.03 | F3: 0.07 | G3: 0.11 | H3: 0.15
B4: 0.06 | D4: b | E4: 0.008 | F4: 0.01 | G4: 0.01 | H4: 0.012
B5: 0.08
B6: 0.1 | D6: Úhel 𝛽𝑚 | E6: =Výpočty!F9 -> 0 | F6: [°]
B7: 0.12 | D7: a | E7: =IF(Výpočty!F$9<15,Tabulky!E3,IF(AND(Výpočty!F$9>=15,Výpočty!F$9<=29),Tabulky!F3,IF(AND(Výpočty!F$9>29,Výpočty!F$9<=40),Tabulky!G3,IF(Výpočty!F$9>40,Tabulky!H3)))) -> 0.03
B8: 0.15 | D8: b | E8: =IF(E$6<15,E4,IF(AND(E$6>=15,E$6<=29),F4,IF(AND(E$6>29,E$6<=40),G4,IF(E$6>40,H4)))) -> 0.008
B9: 0.2
B10: 0.25 | D10: αt | F10: βm | H10: Smysl
B11: 0.3 | D11: 14.5 | F11: 0 | H11: PRAVÝ
B12: 0.4 | D12: 15 | F12: 20 | H12: LEVÝ
B13: 0.5 | D13: 17.5 | F13: 25
B14: 0.6 | D14: 20 | F14: 30 | H14: Ozubení
B15: 0.8 | D15: 22 | F15: 35 | H15: PŘÍMÉ
B16: 1 | D16: 22.5 | F16: 40 | H16: ŠIKMÉ
B17: 1.25 | D17: 25 | F17: 45 | H17: ZAKŘIVENÉ
B18: 1.5
B19: 2 | D19: Typ I
B20: 2.5 | D20: TYP I
B21: 3 | D21: TYP II
B22: 4 | D22: TYP III
B23: 5
B24: 6
B25: 8
B26: 10
B27: 12
B28: 16
B29: 20
B30: 25
B31: 32
B32: 40
B33: 50
B34: 60
B35: 80
B36: 100
